fUSD/lending_fUSD_20241107
["ID","MTS","AMOUNT","RATE_DAILY","PERIOD"]
[341534873,1730965850497,-520.22,0.0003041,4]
[341534874,1730965850589,-500.0,0.0003041,4]
[341534875,1730965850599,-500.0,0.0003041,4]
[341534876,1730965850609,-500.0,0.0003041,4]
[341534877,1730965850618,-500.0,0.0003041,4]
[341534878,1730965850627,-500.0,0.0003041,4]
[341534879,1730965850636,-500.0,0.0003041,4]
[341534880,1730965850646,-500.0,0.0003041,4]
[341534881,1730965850656,-611.89,0.0003041,4]
[341534882,1730965850665,-151.0,0.0003041,7]
[341534883,1730965850674,-500.0,0.0003041,4]
[341534884,1730965850684,-1697.57,0.0003041,4]
[341534885,1730965850693,-500.0,0.0003041,4]
[341534886,1730965850703,-171.18501062,0.0003041,4]
[341534887,1730965850712,-500.0,0.0003041,4]
[341534888,1730965850722,-847.06,0.0003041,4]
[341534889,1730965850731,-685.3,0.0003041,4]
[341534890,1730965850742,-151.0,0.0003041,7]
[341534891,1730965850755,-500.0,0.0003041,4]
[341534892,1730965850764,-500.0,0.0003041,4]
[341534893,1730965850773,-1154.84,0.0003041,4]
[341534894,1730965850782,-501.17,0.0003041,4]
[341534895,1730965850792,-513.19,0.0003041,4]
[341534896,1730965850802,-500.0,0.0003041,4]
[341534897,1730965850811,-819.22,0.0003041,4]
[341534898,1730965850822,-478.80548506,0.0003041,4]
[341534899,1730965850831,-500.0,0.0003041,4]
[341534900,1730965850841,-516.19,0.0003041,4]
[341534901,1730965850853,-521.63,0.0003041,4]
[341534902,1730965850871,-500.0,0.0003041,4]
[341534903,1730965850880,-1194.19,0.0003041,4]
[341534904,1730965850889,-1964.9,0.0003041,4]
[341534905,1730965850898,-500.0,0.0003041,4]
[341534906,1730965850907,-500.0,0.0003041,4]
[341534907,1730965850917,-1492.24,0.0003041,4]
[341534908,1730965850926,-968.8,0.0003041,4]
[341534909,1730965850935,-3916.88,0.0003041,4]
[341534910,1730965850945,-608.55987025,0.0003041,4]
[341534911,1730965850954,-824.53,0.0003041,4]
[341534912,1730965850963,-810.05,0.0003041,4]
[341534913,1730965850972,-500.0,0.0003041,4]
[341534914,1730965850982,-500.0,0.0003041,4]
[341534915,1730965850992,-932.18,0.0003041,4]
[341534916,1730965851002,-1252.51,0.0003041,4]
[341534917,1730965851011,-913.01,0.0003041,4]
[341534918,1730965851020,-500.0,0.0003041,4]
[341534919,1730965851030,-500.0,0.0003041,4]
[341534920,1730965851039,-500.0,0.0003041,4]
[341534921,1730965851048,-533.69,0.0003041,4]
[341534922,1730965851058,-1825.77,0.0003041,4]
[341534923,1730965851067,-500.0,0.0003041,4]
[341534924,1730965851076,-500.0,0.0003041,4]
[341534925,1730965851085,-500.0,0.0003041,4]
[341534926,1730965851095,-2607.1,0.0003041,4]
[341534927,1730965851104,-500.0,0.0003041,4]
[341534928,1730965851113,-500.0,0.0003041,4]
[341534929,1730965851124,-500.0,0.0003041,4]
[341534930,1730965851133,-151.0,0.0003041,7]
[341534931,1730965851143,-500.0,0.0003041,4]
[341534932,1730965851152,-500.0,0.0003041,4]
[341534933,1730965851162,-833.69,0.0003041,4]
[341534934,1730965851171,-562.1,0.0003041,4]
[341534935,1730965851180,-543.58,0.0003041,4]
[341534936,1730965851189,-500.0,0.0003041,4]
[341534937,1730965851198,-883.54,0.0003041,4]
[341534938,1730965851207,-500.0,0.0003041,4]
[341534939,1730965851217,-500.0,0.0003041,4]
[341534940,1730965851226,-500.0,0.0003041,4]
[341534941,1730965851236,-500.0,0.0003041,4]
[341534942,1730965851245,-500.089955,0.0003041,7]
[341534943,1730965851255,-620.3,0.0003041,4]
[341534944,1730965851264,-500.089955,0.0003041,7]
[341534945,1730965851273,-151.0,0.0003041,7]
[341534946,1730965851282,-505.65738679,0.0003041,4]
[341534947,1730965851292,-645.96,0.0003041,4]
[341534948,1730965851301,-1441.69,0.0003041,4]
[341534949,1730965851310,-500.0,0.0003041,4]
[341534950,1730965851319,-2286.47,0.0003041,4]
[341534951,1730965851329,-500.0,0.0003041,4]
[341534952,1730965851338,-500.0,0.0003041,4]
[341534953,1730965851347,-1071.07,0.0003041,4]
[341534954,1730965851357,-151.0,0.0003041,7]
[341534955,1730965851367,-500.0,0.0003041,4]
[341534956,1730965851376,-500.0,0.0003041,4]
[341534957,1730965851385,-500.0,0.0003041,4]
[341534958,1730965851395,-500.0,0.0003041,4]
[341534959,1730965851404,-591.42,0.0003041,4]
[341534960,1730965851414,-500.0,0.0003041,4]
[341534961,1730965851425,-500.0,0.0003041,4]
[341534962,1730965851434,-797.05,0.0003041,4]
[341534963,1730965851443,-361.192634,0.0003041,4]
[341534964,1730965851453,-3319.19,0.0003041,4]
[341534965,1730965851462,-500.0,0.0003041,4]
[341534966,1730965851471,-224.843883,0.0003041,7]
[341534967,1730965851480,-151.0,0.0003041,7]
[341534968,1730965851491,-584.69,0.0003041,4]
[341534969,1730965851500,-515.08,0.0003041,4]
[341534970,1730965851509,-224.843883,0.0003041,7]
[341534971,1730965851518,-500.0,0.0003041,4]
[341534972,1730965851527,-500.0,0.0003041,4]
[341534973,1730965851536,-760.19,0.0003041,4]
[341534974,1730965851546,-500.0,0.0003041,4]
[341534975,1730965851555,-500.0,0.0003041,4]
[341534976,1730965851565,-500.0,0.0003041,4]
[341534977,1730965851575,-8576.08,0.0003041,4]
[341534978,1730965851584,-1433.56,0.0003041,4]
[341534979,1730965851593,-500.0,0.0003041,4]
[341534980,1730965851602,-996.84,0.0003041,4]
[341534981,1730965851611,-500.0,0.0003041,4]
[341534982,1730965851620,-500.0,0.0003041,4]
[341534983,1730965851630,-629.17,0.0003041,4]
[341534984,1730965851639,-1863.81,0.0003041,4]
[341534985,1730965851648,-249.002412,0.0003041,7]
[341534986,1730965851656,-500.0,0.0003041,4]
[341534987,1730965851667,-500.0,0.0003041,4]
[341534988,1730965851676,-500.0,0.0003041,4]
[341534989,1730965851685,-151.0,0.0003041,7]
[341534990,1730965851694,-526.33,0.0003041,4]
[341534991,1730965851703,-500.0,0.0003041,4]
[341534992,1730965851712,-151.0,0.0003041,7]
[341534993,1730965851721,-500.0,0.0003041,4]
[341534994,1730965851730,-151.0,0.0003041,7]
[341534995,1730965851740,-151.0,0.0003041,7]
[341534996,1730965851753,-1008.73,0.0003041,4]
[341534997,1730965851762,-500.0,0.0003041,4]
[341534998,1730965851771,-500.0,0.0003041,4]
[341534999,1730965851782,-335.309537,0.0003041,4]
[341535000,1730965851793,-500.0,0.0003041,4]
[341535001,1730965851802,-1651.38,0.0003041,4]
[341535002,1730965851811,-151.0,0.0003041,7]
[341535003,1730965851823,-500.0,0.0003041,4]
[341535004,1730965851833,-500.0,0.0003041,4]
[341535005,1730965851843,-500.0,0.0003041,4]
[341535006,1730965851853,-500.0,0.0003041,4]
[341535007,1730965851864,-151.0,0.0003041,7]
[341535008,1730965851873,-500.0,0.0003041,4]
[341535009,1730965851882,-500.0,0.0003041,4]
[341535010,1730965851892,-500.0,0.0003041,4]
[341535011,1730965851901,-1315.11,0.0003041,4]
[341535012,1730965851911,-151.0,0.0003041,7]
[341535013,1730965851920,-500.0,0.0003041,4]
[341535014,1730965851929,-151.0,0.0003041,7]
[341535015,1730965851939,-6324.74,0.0003041,4]
[341535016,1730965851949,-771.31,0.0003041,4]
[341535017,1730965851959,-500.0,0.0003041,4]
[341535018,1730965851969,-151.0,0.0003041,7]
[341535019,1730965851978,-500.0,0.0003041,4]
[341535020,1730965851989,-500.0,0.0003041,4]
[341535021,1730965851998,-500.0,0.0003041,4]
[341535022,1730965852008,-151.0,0.0003041,7]
[341535023,1730965852018,-151.0,0.0003041,7]
[341535024,1730965852027,-844.17,0.0003041,4]
[341535025,1730965852036,-500.0,0.0003041,4]
[341535026,1730965852046,-500.0,0.0003041,4]
[341535027,1730965852056,-500.0,0.0003041,4]
[341535028,1730965852067,-500.0,0.0003041,4]
[341535029,1730965852077,-1006.84,0.0003041,4]
[341535030,1730965852087,-715.45,0.0003041,4]
[341535031,1730965852096,-678.75,0.0003041,4]
[341535032,1730965852105,-500.0,0.0003041,4]
[341535033,1730965852116,-500.0,0.0003041,4]
[341535034,1730965852125,-500.0,0.0003041,4]
[341535035,1730965852134,-151.0,0.0003041,7]
[341535036,1730965852143,-151.0,0.0003041,7]
[341535037,1730965852153,-894.12,0.0003041,4]
[341535038,1730965852162,-500.0,0.0003041,4]
[341535039,1730965852171,-500.0,0.0003041,4]
[341535040,1730965852180,-606.42671313,0.0003041,4]
[341535041,1730965852189,-500.0,0.0003041,4]
[341535042,1730965852198,-1481.01,0.0003041,4]
[341535043,1730965852208,-632.47,0.0003041,4]
[341535044,1730965852217,-151.0,0.0003041,7]
[341535045,1730965852227,-151.0,0.0003041,7]
[341535046,1730965852237,-500.0,0.0003041,4]
[341535047,1730965852246,-500.0,0.0003041,4]
[341535048,1730965852256,-500.0,0.0003041,4]
[341535049,1730965852266,-500.0,0.0003041,4]
[341535050,1730965852276,-500.0,0.0003041,4]
[341535051,1730965852285,-500.0,0.0003041,4]
[341535052,1730965852294,-500.0,0.0003041,4]
[341535053,1730965852304,-500.0,0.0003041,4]
[341535054,1730965852313,-1072.58,0.0003041,4]
[341535055,1730965852322,-610.88,0.0003041,4]
[341535056,1730965852331,-500.0,0.0003041,4]
[341535057,1730965852341,-500.0,0.0003041,4]
[341535058,1730965852352,-500.0,0.0003041,4]
[341535059,1730965852361,-151.0,0.0003041,7]
[341535060,1730965852371,-607.95,0.0003041,4]
[341535061,1730965852380,-500.0,0.0003041,2]
[341535062,1730965852390,-520.83689036,0.0003041,4]
[341535063,1730965852400,-151.0,0.0003041,7]
[341535064,1730965852409,-553.05,0.0003041,4]
[341535065,1730965852419,-500.0,0.0003041,4]
[341535066,1730965852429,-500.0,0.0003041,4]
[341535067,1730965852438,-1183.23,0.0003041,4]
[341535068,1730965852448,-500.0,0.0003041,4]
[341535069,1730965852458,-500.0,0.0003041,4]
[341535070,1730965852467,-1318.34,0.0003041,4]
[341535071,1730965852477,-500.0,0.0003041,4]
[341535072,1730965852487,-500.0,0.0003041,4]
[341535073,1730965852497,-500.0,0.0003041,4]
[341535074,1730965852506,-500.0,0.0003041,4]
[341535075,1730965852517,-1057.08,0.0003041,4]
[341535076,1730965852526,-500.0,0.0003041,4]
[341535077,1730965852536,-1661.94,0.0003041,4]
[341535078,1730965852545,-500.0,0.0003041,4]
[341535079,1730965852555,-151.0,0.0003041,7]
[341535080,1730965852565,-3989.72,0.0003041,4]
[341535081,1730965852575,-2298.67,0.0003041,4]
[341535082,1730965852584,-500.0,0.0003041,4]
[341535083,1730965852593,-500.0,0.0003041,4]
[341535084,1730965852603,-1226.8,0.0003041,4]
[341535085,1730965852613,-885.54,0.0003041,4]
[341535086,1730965852622,-622.84,0.0003041,4]
[341535087,1730965852632,-1925.96,0.0003041,4]
[341535088,1730965852643,-572.54,0.0003041,4]
[341535089,1730965852653,-846.85,0.0003041,4]
[341535090,1730965852662,-500.0,0.0003041,4]
[341535091,1730965852671,-500.0,0.0003041,4]
[341535092,1730965852680,-500.0,0.0003041,4]
[341535093,1730965852691,-500.0,0.0003041,4]
[341535094,1730965852701,-1078.37,0.0003041,4]
[341535095,1730965852710,-2782.34,0.0003041,4]
[341535096,1730965852719,-500.0,0.0003041,4]
[341535097,1730965852730,-542.47,0.0003041,4]
[341535098,1730965852740,-200.0,0.0003041,4]
[341535099,1730965852751,-500.0,0.0003041,4]
[341535100,1730965852761,-500.0,0.0003041,4]
[341535101,1730965852772,-151.0,0.0003041,7]
[341535102,1730965852782,-500.0,0.0003041,4]
[341535103,1730965852791,-4226.92,0.0003041,4]
[341535104,1730965852800,-500.0,0.0003041,4]
[341535105,1730965852810,-500.0,0.0003041,4]
[341535106,1730965852819,-2868.1,0.0003041,4]
[341535107,1730965852830,-151.0,0.0003041,7]
[341535108,1730965852840,-500.0,0.0003041,4]
[341535109,1730965852850,-500.0,0.0003041,4]
[341535110,1730965852859,-994.97,0.0003041,2]
[341535111,1730965852868,-500.0,0.0003041,4]
[341535112,1730965852878,-151.0,0.0003041,7]
[341535113,1730965852887,-151.0,0.0003041,7]
[341535114,1730965852897,-3380.63,0.0003041,4]
[341535115,1730965852906,-500.0,0.0003041,4]
[341535116,1730965852916,-500.0,0.0003041,4]
[341535117,1730965852926,-151.0,0.0003041,7]
[341535118,1730965852936,-531.17,0.0003041,4]
[341535119,1730965852945,-1725.24,0.0003041,4]
[341535120,1730965852955,-151.0,0.0003041,7]
[341535121,1730965852964,-500.0,0.0003041,4]
[341535122,1730965852974,-1489.65,0.0003041,4]
[341535123,1730965852983,-593.32,0.0003041,4]
[341535124,1730965853000,-500.0,0.0003041,4]
[341535125,1730965853010,-500.0,0.0003041,4]
[341535126,1730965853019,-320.42,0.0003041,4]
[341535127,1730965853029,-500.0,0.0003041,4]
[341535128,1730965853039,-568.64,0.0003041,4]
[341535129,1730965853049,-3637.39,0.0003041,4]
[341535130,1730965853059,-500.0,0.0003041,4]
[341535131,1730965853068,-500.0,0.0003041,4]
[341535132,1730965853077,-1878.69,0.0003041,4]
[341535133,1730965853087,-500.0,0.0003041,4]
[341535134,1730965853097,-670.0,0.0003041,4]
[341535135,1730965853107,-555.5,0.0003041,4]
[341535136,1730965853116,-151.0,0.0003041,7]
[341535137,1730965853127,-596.460516,0.0003041,7]
[341535138,1730965853137,-151.0,0.0003041,7]
[341535139,1730965853146,-596.460516,0.0003041,7]
[341535140,1730965853156,-500.0,0.0003041,4]
[341535141,1730965853165,-500.0,0.0003041,4]
[341535142,1730965853175,-500.0,0.0003041,4]
[341535143,1730965853185,-596.460516,0.0003041,7]
[341535144,1730965853195,-500.0,0.0003041,4]
[341535145,1730965853204,-596.460516,0.0003041,7]
[341535146,1730965853214,-500.0,0.0003041,4]
[341535147,1730965853223,-151.0,0.0003041,7]
[341535148,1730965853235,-500.0,0.0003041,4]
[341535149,1730965853245,-584.95,0.0003041,4]
[341535150,1730965853255,-572.07,0.0003041,4]
[341535151,1730965853265,-923.3,0.0003041,4]
[341535152,1730965853275,-1723.5,0.0003041,4]
[341535153,1730965853284,-151.0,0.0003041,7]
[341535154,1730965853294,-500.0,0.0003041,4]
[341535155,1730965853304,-2008.45,0.0003041,4]
[341535156,1730965853313,-151.0,0.0003041,7]
[341535157,1730965853323,-151.0,0.0003041,7]
[341535158,1730965853333,-290.029731,0.0003041,7]
[341535159,1730965853342,-500.0,0.0003041,4]
[341535160,1730965853352,-579.96,0.0003041,4]
[341535161,1730965853362,-500.0,0.0003041,4]
[341535162,1730965853372,-500.0,0.0003041,4]
[341535163,1730965853382,-924.34,0.0003041,4]
[341535164,1730965853391,-547.34,0.0003041,4]
[341535165,1730965853401,-500.0,0.0003041,4]
[341535166,1730965853411,-500.0,0.0003041,4]
[341535167,1730965853421,-530.45,0.0003041,4]
[341535168,1730965853431,-616.4,0.0003041,4]
[341535169,1730965853442,-151.0,0.0003041,7]
[341535170,1730965853452,-500.0,0.0003041,4]
[341535171,1730965853462,-151.0,0.0003041,7]
[341535172,1730965853472,-500.0,0.0003041,4]
[341535173,1730965853482,-552.68,0.0003041,4]
[341535174,1730965853493,-873.97,0.0003041,4]
[341535175,1730965853502,-500.0,0.0003041,4]
[341535176,1730965853513,-1088.11,0.0003041,4]
[341535177,1730965853522,-500.0,0.0003041,4]
[341535178,1730965853532,-500.0,0.0003041,4]
[341535179,1730965853542,-1043.69,0.0003041,4]
[341535180,1730965853551,-151.0,0.0003041,7]
[341535181,1730965853561,-2062.63,0.0003041,4]
[341535182,1730965853571,-151.0,0.0003041,7]
[341535183,1730965853582,-922.85,0.0003041,4]
[341535184,1730965853592,-500.0,0.0003041,4]
[341535185,1730965853602,-2492.26,0.0003041,4]
[341535186,1730965853612,-151.0,0.0003041,7]
[341535187,1730965853623,-151.0,0.0003041,7]
[341535188,1730965853633,-178.889079,0.0003041,7]
[341535189,1730965853644,-178.889079,0.0003041,7]
[341535190,1730965853654,-500.0,0.0003041,4]
[341535191,1730965853664,-500.0,0.0003041,4]
[341535192,1730965853674,-1824.37,0.0003041,4]
[341535193,1730965853684,-895.69,0.0003041,4]
[341535194,1730965853694,-500.0,0.0003041,4]
[341535195,1730965853704,-1077.5,0.0003041,4]
[341535196,1730965853713,-178.889079,0.0003041,7]
[341535197,1730965853723,-178.889079,0.0003041,7]
[341535198,1730965853733,-500.0,0.0003041,4]
[341535199,1730965853744,-1028.81,0.0003041,4]
[341535200,1730965853757,-500.0,0.0003041,4]
[341535201,1730965853766,-542.19,0.0003041,4]
[341535202,1730965853776,-500.0,0.0003041,4]
[341535203,1730965853787,-545.65,0.00030433,2]
[341535204,1730965853797,-500.0,0.00030467,5]
[341535205,1730965853806,-627.1938694,0.00030473,5]
[341535206,1730965853816,-500.0,0.00030473,2]
[341535207,1730965853827,-211.2635935,0.00030584,2]
[341535208,1730965853837,-6362.37,0.0003062,2]
[341535209,1730965853847,-9999.99,0.0003062,2]
[341535210,1730965853857,-29999.99,0.0003062,2]
[341535211,1730965853866,-1118.64,0.0003062,2]
[341535212,1730965853876,-151.0,0.00030621,7]
[341535213,1730965853886,-596.460516,0.00030621,7]
[341535214,1730965853896,-596.460516,0.00030621,7]
[341535215,1730965853907,-182.7423,0.00030621,7]
[341535216,1730965853917,-178.889079,0.00030621,7]
[341535217,1730965853927,-178.889079,0.00030621,7]
[341535218,1730965853937,-8152.0,0.00030647,2]
[341535219,1730965853948,-151.0,0.00030647,7]
[341535220,1730965853958,-500.0,0.00030673,5]
[341535221,1730965853968,-500.0,0.00030673,5]
[341535222,1730965853978,-500.0,0.00030673,5]
[341535223,1730965853990,-500.0,0.00030673,5]
[341535224,1730965854001,-534.5466245,0.00030673,5]
[341535225,1730965854011,-500.0,0.00030673,5]
[341535226,1730965854021,-500.0,0.00030673,5]
[341535227,1730965854031,-500.0,0.00030673,5]
[341535228,1730965854042,-151.0,0.00030682,7]
[341535229,1730965854051,-151.0,0.00030682,7]
[341535230,1730965854062,-151.0,0.00030682,7]
[341535231,1730965854072,-151.0,0.00030682,7]
[341535232,1730965854082,-151.0,0.00030682,7]
[341535233,1730965854092,-151.0,0.00030682,7]
[341535234,1730965854102,-151.0,0.00030682,7]
[341535235,1730965854111,-500.089955,0.00030682,7]
[341535236,1730965854121,-500.089955,0.00030682,7]
[341535237,1730965854141,-151.0,0.00030682,7]
[341535238,1730965854152,-224.843883,0.00030682,7]
[341535239,1730965854163,-224.843883,0.00030682,7]
[341535240,1730965854173,-151.0,0.00030682,7]
[341535241,1730965854183,-641.14,0.00030682,4]
[341535242,1730965854194,-151.0,0.00030682,7]
[341535243,1730965854206,-1028.93,0.00030682,4]
[341535244,1730965854219,-151.0,0.00030682,7]
[341535245,1730965854229,-1261.74,0.00030682,4]
[341535246,1730965854240,-2218.54,0.00030682,4]
[341535247,1730965854251,-1876.12,0.00030682,4]
[341535248,1730965854261,-6382.42,0.00030682,4]
[341535249,1730965854272,-1083.82,0.00030682,4]
[341535250,1730965854283,-1098.04,0.00030682,4]
[341535251,1730965854293,-724.3,0.00030682,4]
[341535252,1730965854303,-500.0,0.00030682,4]
[341535253,1730965854314,-2990.93,0.00030682,4]
[341535254,1730965854325,-1537.75,0.00030682,4]
[341535255,1730965854335,-2927.67,0.00030682,4]
[341535256,1730965854346,-624.19,0.00030682,4]
[341535257,1730965854357,-1362.7,0.00030682,4]
[341535258,1730965854368,-650.67,0.00030682,4]
[341535259,1730965854379,-566.96,0.00030682,4]
[341535260,1730965854389,-500.0,0.00030682,4]
[341535261,1730965854399,-500.0,0.00030682,4]
[341535262,1730965854409,-1534.39,0.00030682,4]
[341535263,1730965854420,-229794.39616115,0.00030683,3]
[341535264,1730965854430,-897.83036278,0.00030683,3]
[341535265,1730965854441,-575.19,0.00030683,4]
[341535266,1730965854452,-542.74,0.00030683,4]
[341535267,1730965854462,-744.6,0.00030683,4]
[341535268,1730965854472,-500.0,0.00030683,4]
[341535269,1730965854483,-500.0,0.00030683,4]
[341535270,1730965854494,-500.0,0.00030683,4]
[341535271,1730965854505,-500.0,0.00030683,4]
[341535272,1730965854515,-726.75,0.00030683,4]
[341535273,1730965854526,-893.24,0.00030683,4]
[341535274,1730965854536,-500.0,0.00030683,4]
[341535275,1730965854547,-1391.7,0.00030683,4]
[341535276,1730965854557,-647.08,0.00030683,4]
[341535277,1730965854568,-513.3,0.00030683,4]
[341535278,1730965854578,-501.78,0.00030683,4]
[341535279,1730965854588,-718.45,0.00030683,4]
[341535280,1730965854598,-500.0,0.00030683,4]
[341535281,1730965854609,-833.45,0.00030683,4]
[341535282,1730965854619,-500.0,0.00030683,4]
[341535283,1730965854630,-500.0,0.00030683,4]
[341535284,1730965854640,-500.0,0.00030683,4]
[341535285,1730965854651,-500.0,0.00030683,4]
[341535286,1730965854661,-500.0,0.00030683,4]
[341535287,1730965854671,-782.91,0.00030683,4]
[341535288,1730965854682,-500.0,0.00030683,4]
[341535289,1730965854692,-500.0,0.00030683,4]
[341535290,1730965854702,-500.0,0.00030683,4]
[341535291,1730965854712,-151.0,0.00030683,7]
[341535292,1730965854723,-500.0,0.00030683,4]
[341535293,1730965854734,-151.0,0.00030683,7]
[341535294,1730965854747,-786.71,0.00030683,4]
[341535295,1730965854762,-500.0,0.00030683,4]
[341535296,1730965854773,-745.77,0.00030683,4]
[341535297,1730965854783,-151.0,0.00030683,7]
[341535298,1730965854794,-500.0,0.00030683,4]
[341535299,1730965854804,-151.0,0.00030683,7]
[341535300,1730965854814,-1278.03,0.00030683,4]
[341535301,1730965854826,-500.0,0.00030683,4]
[341535302,1730965854837,-612.76,0.00030683,4]
[341535303,1730965854847,-500.0,0.00030683,4]
[341535304,1730965854858,-215.23,0.00030683,4]
[341535305,1730965854868,-500.0,0.00030683,4]
[341535306,1730965854879,-1252.76,0.00030683,4]
[341535307,1730965854889,-489.19,0.00030683,4]
[341535308,1730965854899,-500.0,0.00030683,4]
[341535309,1730965854910,-500.0,0.00030683,4]
[341535310,1730965854921,-824.21,0.00030683,4]
[341535311,1730965854932,-500.0,0.00030683,4]
[341535312,1730965854943,-500.0,0.00030683,4]
[341535313,1730965854954,-500.0,0.00030683,4]
[341535314,1730965854964,-1063.49,0.00030683,4]
[341535315,1730965854975,-500.0,0.00030683,4]
[341535316,1730965854986,-765.59,0.00030683,4]
[341535317,1730965855000,-151.0,0.00030683,7]
[341535318,1730965855013,-500.0,0.00030683,4]
[341535319,1730965855023,-803.71,0.00030683,4]
[341535320,1730965855033,-573.42,0.00030683,4]
[341535321,1730965855044,-500.0,0.00030683,4]
[341535322,1730965855055,-603.39,0.00030683,4]
[341535323,1730965855065,-151.0,0.00030683,7]
[341535324,1730965855075,-813.76,0.00030683,4]
[341535325,1730965855086,-151.0,0.00030683,7]
[341535326,1730965855097,-500.0,0.00030683,4]
[341535327,1730965855107,-1211.78,0.00030683,4]
[341535328,1730965855117,-500.0,0.00030683,4]
[341535329,1730965855127,-533.12,0.00030683,4]
[341535330,1730965855138,-500.0,0.00030683,4]
[341535331,1730965855148,-620.56,0.00030683,4]
[341535332,1730965855159,-2058.22,0.00030683,4]
[341535333,1730965855169,-500.0,0.00030683,4]
[341535334,1730965855179,-500.0,0.00030683,4]
[341535335,1730965855189,-599.46,0.00030683,4]
[341535336,1730965855200,-603.23,0.00030683,4]
[341535337,1730965855211,-1547.91,0.00030683,4]
[341535338,1730965855221,-500.0,0.00030683,4]
[341535339,1730965855231,-666.21,0.00030683,4]
[341535340,1730965855245,-664.9,0.00030683,4]
[341535341,1730965855255,-500.0,0.00030683,4]
[341535342,1730965855265,-500.0,0.00030683,4]
[341535343,1730965855276,-500.0,0.00030683,4]
[341535344,1730965855286,-830.21,0.00030683,4]
[341535345,1730965855297,-500.0,0.00030683,4]
[341535346,1730965855307,-603.7,0.00030683,4]
[341535347,1730965855318,-845.5,0.00030683,4]
[341535348,1730965855329,-2346.99,0.00030683,4]
[341535349,1730965855340,-907.1,0.00030683,4]
[341535350,1730965855351,-500.0,0.00030683,4]
[341535351,1730965855362,-173.231854,0.00030683,7]
[341535352,1730965855372,-853.18,0.00030683,4]
[341535353,1730965855383,-1468.17,0.00030683,4]
[341535354,1730965855394,-733.38,0.00030683,4]
[341535355,1730965855729,-151.0,0.00030683,7]
[341535356,1730965855743,-500.0,0.00030683,4]
[341535357,1730965855756,-521.37,0.00030683,4]
[341535358,1730965855766,-500.0,0.00030683,4]
[341535359,1730965855776,-694.46,0.00030683,4]
[341535360,1730965855787,-500.0,0.00030683,4]
[341535361,1730965855796,-500.0,0.00030683,4]
[341535362,1730965855806,-294.032129,0.00030683,7]
[341535363,1730965855816,-500.0,0.00030683,4]
[341535364,1730965855826,-645.55,0.00030683,4]
[341535365,1730965855836,-1046.94,0.00030683,4]
[341535366,1730965855846,-151.0,0.00030683,7]
[341535367,1730965855856,-500.0,0.00030683,4]
[341535368,1730965855866,-500.0,0.00030683,4]
[341535369,1730965855876,-1851.08,0.00030683,4]
[341535370,1730965855886,-1072.74,0.00030683,4]
[341535371,1730965855896,-500.0,0.00030683,4]
[341535372,1730965855905,-1638.1,0.00030683,4]